bitfinex-derivatives/quotes_BTCF0:USTF0_20241029
["timestamp","ask_amount","ask_price","bid_price","bid_amount"]
[1730183735540,0.14985364,71195.0,71194.0,0.07305242]
[1730183736547,0.11543253,71195.0,71194.0,0.011]
[1730183736747,0.14985843,71195.0,71194.0,0.011]
[1730183736948,0.14985843,71195.0,71194.0,0.07305242]
[1730183738047,0.21191085,71195.0,71194.0,0.011]
[1730183738254,0.31055085,71195.0,71194.0,0.011]
[1730183738453,0.36097249,71195.0,71194.0,0.011]
[1730183740356,0.31055085,71195.0,71194.0,0.011]
[1730183741553,0.31056403,71195.0,71194.0,0.011]
[1730183741858,0.33614737,71195.0,71194.0,0.011]
[1730183742150,0.29298951,71195.0,71194.0,0.011]
[1730183745057,0.65378951,71195.0,71194.0,0.011]
[1730183747556,0.65382951,71195.0,71194.0,0.011]
[1730183747751,0.59177709,71195.0,71194.0,0.011]
[1730183748259,0.55514951,71195.0,71194.0,0.011]
[1730183748560,0.69698638,71195.0,71194.0,0.011]
[1730183751863,0.65382907,71195.0,71194.0,0.011]
[1730183752652,1.07522907,71195.0,71182.0,0.0644]
[1730183752867,0.070296,71181.0,71176.0,0.13055242]
[1730183753163,0.10472731,71181.0,71179.0,0.06415978]
[1730183753353,0.14788811,71181.0,71179.0,0.06415978]
[1730183754056,0.14788811,71181.0,71180.0,0.076]
[1730183754260,0.14888811,71181.0,71180.0,0.076]
[1730183754558,0.10672731,71181.0,71180.0,0.078]
[1730183755371,0.072296,71181.0,71180.0,0.078]
[1730183756067,0.10673088,71181.0,71180.0,0.078]
[1730183756356,0.10673069,71181.0,71180.0,0.078]
[1730183756561,0.10673069,71181.0,71180.0,0.01]
[1730183756752,0.072296,71181.0,71180.0,0.01]
[1730183759363,0.09758462,71181.0,71180.0,0.01]
[1730183760271,0.09758462,71181.0,71180.0,0.0741]
[1730183765870,0.13202007,71181.0,71180.0,0.0741]
[1730183767475,0.09758462,71181.0,71180.0,0.0741]
[1730183770272,0.09758462,71181.0,71180.0,0.01]
[1730183771468,0.15963704,71181.0,71180.0,0.01]
[1730183772168,0.19407326,71181.0,71180.0,0.01]
[1730183772365,0.65871838,71181.0,71180.0,0.01]
[1730183773070,0.61555326,71181.0,71180.0,0.01]
[1730183773770,0.61555326,71181.0,71180.0,0.002]
[1730183774169,0.070307,71170.0,71169.0,0.0661]
[1730183774366,0.070313,71163.0,71162.0,0.1366]
[1730183774566,0.13236542,71163.0,71162.0,0.1366]
[1730183774965,0.070313,71163.0,71162.0,0.19865242]
[1730183776573,0.071313,71163.0,71162.0,0.19965242]
[1730183777069,0.072313,71163.0,71162.0,0.56045242]
[1730183777979,0.03644071,71163.0,71162.0,0.63076642]
[1730183778476,0.3608,71172.0,71162.0,1.04406484]
[1730183778670,0.3608,71172.0,71169.0,0.070307]
[1730183778671,0.04316768,71171.0,71169.0,0.070307]
[1730183778868,0.3608,71172.0,71166.0,0.06205242]
[1730183779071,0.070302,71175.0,71172.0,0.070304]
[1730183779378,0.070302,71175.0,71173.0,0.070304]
[1730183779678,0.070302,71175.0,71174.0,0.13145242]
[1730183780469,0.071302,71175.0,71174.0,0.13145242]
[1730183780870,0.072302,71175.0,71174.0,0.13145242]
[1730183781472,0.072302,71175.0,71174.0,0.62323542]
[1730183781782,0.072302,71175.0,71174.0,0.64878024]
[1730183782174,0.072302,71175.0,71174.0,0.65078024]
[1730183785390,0.002,71175.0,71174.0,0.72188024]
[1730183785569,0.3608,71190.0,71174.0,0.65157724]
[1730183785775,0.070294,71183.0,71182.0,0.06205242]
[1730183788375,0.071294,71183.0,71182.0,0.06205242]
[1730183788575,0.072294,71183.0,71182.0,0.06405242]
[1730183788977,0.10672617,71183.0,71182.0,0.06405242]
[1730183789179,0.03643209,71183.0,71182.0,0.06405242]
[1730183789981,0.002,71183.0,71182.0,0.06405242]
[1730183791180,0.072294,71183.0,71182.0,0.06405242]
[1730183794579,0.431069,71208.0,71182.0,0.60959726]
[1730183794580,0.3608,71208.0,71182.0,0.60959726]
[1730183794776,0.070284,71193.0,71191.0,0.3608]
[1730183795077,0.070284,71193.0,71192.0,0.06205242]
[1730183795281,0.070284,71193.0,71192.0,0.20133742]
[1730183795888,0.071284,71193.0,71192.0,0.26623742]
[1730183796485,0.001,71193.0,71192.0,1.11048984]
[1730183796698,0.070275,71202.0,71201.0,0.070276]
[1730183796991,0.00210736,71210.0,71205.0,0.070272]
[1730183796992,0.070273,71206.0,71205.0,0.070272]
[1730183797181,0.10469739,71206.0,71205.0,0.13232442]
[1730183797990,0.10469526,71206.0,71205.0,0.13232442]
[1730183798191,0.080273,71206.0,71205.0,0.13232442]
[1730183798385,0.091273,71206.0,71205.0,0.13232442]
[1730183798583,0.091273,71206.0,71205.0,0.16479543]
[1730183799382,0.021,71206.0,71205.0,0.16479543]
[1730183800883,0.01,71206.0,71205.0,0.16479543]
[1730183801086,0.0775525,71212.0,71205.0,0.91719013]
[1730183801287,0.03441528,71211.0,71210.0,0.070267]
[1730183801486,0.03441352,71211.0,71210.0,0.48267652]
[1730183801686,0.03441352,71211.0,71210.0,1.11431716]
[1730183802288,0.006,71212.0,71210.0,1.04405016]
[1730183802487,0.006,71212.0,71211.0,0.16478943]
[1730183802692,0.006,71212.0,71211.0,0.58606943]
[1730183803791,0.070256,71222.0,71219.0,0.070258]
[1730183803984,0.070256,71222.0,71220.0,0.070257]
[1730183803985,0.03441303,71221.0,71220.0,0.070257]
[1730183804496,0.070251,71226.0,71225.0,0.070252]
[1730183804792,0.10466203,71226.0,71225.0,0.070252]
[1730183805384,0.03441103,71226.0,71225.0,0.16477543]
[1730183806592,0.04441103,71226.0,71225.0,0.16577543]
[1730183807299,0.05541103,71226.0,71225.0,0.19192992]
[1730183808084,0.021,71226.0,71225.0,0.19192992]
[1730183810590,0.021,71226.0,71225.0,0.16677543]
[1730183814196,0.021,71226.0,71225.0,0.23427543]
[1730183817293,0.021,71226.0,71225.0,0.65547543]
[1730183818900,0.01,71226.0,71225.0,0.65447543]
[1730183819100,0.022,71226.0,71225.0,0.65547543]
[1730183819805,0.012,71226.0,71225.0,0.001]
[1730183819996,0.092252,71226.0,71225.0,0.001]
[1730183820194,0.16979325,71226.0,71225.0,0.001]
[1730183820605,0.16979688,71226.0,71225.0,0.06302192]
[1730183820798,0.1266639,71226.0,71225.0,0.06302192]
[1730183822507,0.1266639,71226.0,71225.0,0.09550658]
[1730183823094,0.092252,71226.0,71225.0,0.09550658]
[1730183823801,0.022,71226.0,71225.0,0.16575858]
[1730183825708,0.022,71226.0,71225.0,0.071252]
[1730183826094,0.092251,71226.0,71225.0,0.071252]
[1730183829405,0.092251,71226.0,71225.0,0.001]
[1730183830397,0.12666081,71226.0,71225.0,0.001]
[1730183830597,0.092251,71226.0,71225.0,0.001]
[1730183831408,0.16979178,71226.0,71225.0,0.001]
[1730183832311,0.12666108,71226.0,71225.0,0.001]
[1730183833002,0.16979332,71226.0,71225.0,0.001]
[1730183833801,0.16979507,71226.0,71225.0,0.001]
[1730183835004,0.12666254,71226.0,71225.0,0.001]
[1730183836701,0.16979521,71226.0,71225.0,0.001]
[1730183837728,0.12666254,71226.0,71225.0,0.09550658]
[1730183838203,0.092251,71226.0,71225.0,0.09550658]
[1730183840507,0.092251,71226.0,71225.0,0.16575858]
[1730183841012,0.022,71226.0,71225.0,0.16575858]
[1730183841204,0.022,71226.0,71225.0,0.071252]
[1730183841615,0.0564085,71226.0,71225.0,0.071252]
[1730183843010,0.022,71226.0,71225.0,0.071252]
[1730183845304,0.022,71226.0,71225.0,0.16575858]
[1730183845509,0.092251,71226.0,71225.0,0.001]
[1730183846217,0.16979334,71226.0,71225.0,0.001]
[1730183846911,0.16979334,71226.0,71225.0,0.09550658]
[1730183848322,0.12666177,71226.0,71225.0,0.09550658]
[1730183849919,0.16979343,71226.0,71225.0,0.09550658]
[1730183850314,0.12666177,71226.0,71225.0,0.09550658]
[1730183854424,0.16979341,71226.0,71225.0,0.0630192]
[1730183855823,0.16979341,71226.0,71225.0,0.001]
[1730183856124,0.16979341,71226.0,71225.0,0.432052]
[1730183861028,0.16979341,71226.0,71225.0,0.3618]
[1730183861228,0.12666177,71226.0,71225.0,0.3618]
[1730183862717,0.12666229,71226.0,71225.0,0.3618]
[1730183864931,0.19494757,71226.0,71225.0,0.3618]
[1730183865231,0.15181493,71226.0,71225.0,0.3618]
[1730183868333,0.19494631,71226.0,71225.0,0.45630996]
[1730183871826,0.19494631,71226.0,71225.0,0.09550996]
[1730183876224,0.15181493,71226.0,71225.0,0.09550996]
[1730183877627,0.15181472,71226.0,71225.0,0.09550996]
[1730183879027,0.15181472,71226.0,71225.0,0.001]
[1730183879929,0.19494735,71226.0,71225.0,0.001]
[1730183881032,0.19494827,71226.0,71225.0,0.001]
[1730183882532,0.19494827,71226.0,71225.0,0.06301926]
[1730183884034,0.15181543,71226.0,71225.0,0.06301926]
[1730183884235,0.15181506,71226.0,71225.0,0.06301926]
[1730183891241,0.19494745,71226.0,71225.0,0.06301926]
[1730183895447,0.19494783,71226.0,71225.0,0.06301926]
[1730183897944,0.19633851,71226.0,71225.0,0.06301926]
[1730183898254,0.15320591,71226.0,71225.0,0.06301926]
[1730183899452,0.15320591,71226.0,71225.0,0.001]
[1730183899856,0.19633967,71226.0,71225.0,0.001]
[1730183900051,0.26463967,71226.0,71225.0,0.001]
[1730183900242,0.3150426,71226.0,71225.0,0.001]
[1730183900650,0.26463967,71226.0,71225.0,0.001]
[1730183901056,0.31504283,71226.0,71225.0,0.001]
[1730183901242,0.45204283,71226.0,71225.0,0.001]
[1730183901447,0.35850591,71226.0,71225.0,0.001]
[1730183901848,0.35927986,71226.0,71225.0,0.001]
[1730183903956,0.1543587,71226.0,71225.0,0.06301926]
[1730183904547,0.15435882,71226.0,71225.0,0.06301926]
[1730183905150,0.12920618,71226.0,71225.0,0.06301926]
[1730183906561,0.17233775,71226.0,71225.0,0.06301926]
[1730183908454,0.10208675,71226.0,71225.0,0.06301926]
[1730183908650,0.10208675,71226.0,71225.0,0.13327126]
[1730183909957,0.10247997,71226.0,71225.0,0.13327126]
[1730183911964,0.17273097,71226.0,71225.0,0.13327126]
[1730183913366,0.1295994,71226.0,71225.0,0.13327126]
[1730183921674,0.17272975,71226.0,71225.0,0.13327126]
[1730183923861,0.1295994,71226.0,71225.0,0.13327126]
[1730183924965,0.12959785,71226.0,71225.0,0.13327126]
[1730183928581,0.09518769,71226.0,71225.0,0.13327126]
[1730183930275,0.12959813,71226.0,71225.0,0.13327126]
[1730183940786,0.12959813,71226.0,71225.0,0.001]
[1730183941484,0.17273056,71226.0,71225.0,0.001]
[1730183943383,0.17273174,71226.0,71225.0,0.001]
[1730183944783,0.17273174,71226.0,71225.0,0.06301926]
[1730183945491,0.17465749,71226.0,71225.0,0.06301926]
[1730183946581,0.17465749,71226.0,71225.0,0.06201926]
[1730183946894,0.070253,71224.0,71223.0,0.31131872]
[1730183947088,0.070253,71224.0,71223.0,0.37333798]
[1730183947388,0.15265949,71224.0,71223.0,0.37333798]
[1730183948188,0.16465949,71224.0,71223.0,0.37433798]
[1730183948389,0.17465949,71224.0,71223.0,0.37533798]
[1730183951084,0.17465949,71224.0,71223.0,0.31331872]
[1730183952803,0.17465949,71224.0,71223.0,0.38357272]
[1730183953589,0.10440649,71224.0,71223.0,0.38357272]
[1730183953893,0.06127397,71224.0,71223.0,0.38357272]
[1730183958100,0.06127284,71224.0,71223.0,0.38357272]
[1730183958593,0.17465693,71224.0,71223.0,0.38357272]
[1730183960202,0.10440393,71224.0,71223.0,0.38357272]
[1730183966704,0.06127284,71224.0,71223.0,0.38357272]
[1730183967598,0.06127161,71224.0,71223.0,0.38357272]
[1730183968308,0.55064661,71245.0,71223.0,0.38357272]
[1730183968501,0.03440845,71236.0,71231.0,0.3608]
[1730183968703,0.09616,71238.0,71231.0,0.3608]
[1730183969002,0.09616,71238.0,71236.0,0.13226026]
[1730183969204,0.1429321,71237.0,71236.0,0.13226026]
[1730183969601,0.11287389,71237.0,71236.0,0.13226026]
[1730183969906,0.12487389,71237.0,71236.0,0.13226026]
[1730183970519,0.12487389,71237.0,71236.0,0.13326026]
[1730183970810,0.0995321,71237.0,71236.0,0.13326026]
[1730183971297,0.0895321,71237.0,71236.0,0.13426026]
[1730183971608,0.0945321,71237.0,71236.0,0.13426026]
[1730183977101,0.09453311,71237.0,71236.0,0.13426026]
[1730183981599,0.09453304,71237.0,71236.0,0.13426026]
[1730183982008,0.09453304,71237.0,71236.0,0.19627952]
[1730183982911,0.00210614,71241.0,71240.0,0.070237]
[1730183983109,0.00210614,71241.0,71240.0,0.49305626]
[1730183983417,0.05038903,71252.0,71241.0,0.070236]
[1730183983606,0.02581511,71254.0,71251.0,0.13224526]
[1730183983909,0.12061203,71255.0,71253.0,0.1307342]
[1730183984504,0.070223,71255.0,71253.0,0.1307342]
[1730183984898,0.1944,71256.0,71253.0,0.1307342]
[1730183985097,0.070224,71254.0,71253.0,0.1317342]
[1730183985804,0.070224,71254.0,71253.0,0.1327342]
[1730183987911,0.29000939,71256.0,71254.0,0.070223]
[1730183988216,0.070223,71255.0,71254.0,0.070223]
[1730183988419,0.11333888,71255.0,71254.0,0.070223]
[1730183988914,0.070223,71255.0,71254.0,0.070223]
[1730183989318,0.42353926,71260.0,71255.0,0.070223]
[1730183989319,0.36152,71260.0,71255.0,0.070223]
[1730183989612,0.36152,71260.0,71254.0,0.06301926]
[1730183989613,0.02590891,71260.0,71259.0,0.13223826]
[1730183989820,0.16266,71267.0,71259.0,0.06201926]
[1730183989821,0.0665,71267.0,71259.0,0.06201926]
[1730183990011,0.0665,71267.0,71265.0,0.06201926]
[1730183990012,0.431012,71266.0,71265.0,0.06201926]
[1730183991102,0.46540632,71266.0,71265.0,0.06201926]
[1730183991613,0.46540632,71266.0,71265.0,0.06301926]
[1730183991810,0.49021693,71266.0,71265.0,0.06301926]
[1730183992011,0.49021693,71266.0,71265.0,0.06401926]
[1730183992209,0.53332827,71266.0,71265.0,0.06401926]
[1730183993514,0.49021693,71266.0,71265.0,0.06401926]
[1730183995718,0.53332749,71266.0,71265.0,0.06401926]
[1730183996318,0.53332716,71266.0,71265.0,0.06401926]
[1730183997024,0.46311516,71266.0,71265.0,0.06401926]
[1730183997219,0.53332716,71266.0,71265.0,0.06401926]
[1730183999709,0.53332716,71266.0,71265.0,0.02158073]
[1730184000316,0.53332716,71266.0,71265.0,0.02058073]
[1730184000517,0.53332716,71266.0,71265.0,0.02158073]
[1730184000725,0.53332684,71266.0,71265.0,0.02058073]
[1730184000919,0.53332684,71266.0,71265.0,0.02158073]
[1730184001519,0.53332684,71266.0,71265.0,0.09179373]
[1730184001520,0.46311484,71266.0,71265.0,0.09179373]
[1730184002522,0.46311484,71266.0,71265.0,0.02158073]
[1730184002723,0.53332684,71266.0,71265.0,0.02158073]
[1730184003320,0.17252684,71266.0,71265.0,0.02158073]
[1730184003723,0.12941647,71266.0,71265.0,0.02158073]
[1730184003916,0.05920447,71266.0,71265.0,0.09179373]
[1730184005125,0.12941647,71266.0,71265.0,0.02158073]
[1730184005311,0.09502261,71266.0,71265.0,0.02158073]
[1730184007130,0.09502261,71266.0,71265.0,0.002]
[1730184007626,0.01,76100.0,71276.0,0.070202]
[1730184007627,0.3608,71298.0,71276.0,0.070202]
[1730184007926,0.3608,71298.0,71265.0,0.48526259]
[1730184007927,0.3608,71298.0,71287.0,0.06201926]
[1730184008126,0.06201926,71292.0,71283.0,0.06201926]
[1730184008325,0.13220526,71292.0,71285.0,0.070193]
[1730184008519,0.070186,71292.0,71288.0,0.06201926]
[1730184008920,0.166266,71292.0,71288.0,0.06201926]
[1730184009321,0.070183,71295.0,71288.0,0.06201926]
[1730184009528,0.09608,71294.0,71291.0,0.06201926]
[1730184009824,0.1899,71297.0,71293.0,0.070185]
[1730184010029,0.28598,71297.0,71295.0,0.06201926]
[1730184010232,0.1899,71297.0,71295.0,0.06201926]
[1730184011229,0.1899,71297.0,71295.0,0.001]
[1730184011432,0.28598,71297.0,71295.0,0.001]
[1730184012025,0.356162,71297.0,71296.0,0.06201926]
[1730184013532,0.260082,71297.0,71296.0,0.06201926]
[1730184013728,0.070182,71296.0,71295.0,0.002]
[1730184013933,0.070182,71296.0,71295.0,0.001]
[1730184014121,0.490982,71296.0,71295.0,0.001]
[1730184014336,0.070189,71289.0,71285.0,0.430992]
[1730184015139,0.070189,71289.0,71286.0,0.06201926]
[1730184016024,0.13220326,71294.0,71286.0,0.13221026]
[1730184016227,0.070186,71292.0,71286.0,0.13221026]
[1730184016834,0.070188,71291.0,71286.0,0.13221026]
[1730184017034,0.07747872,71290.0,71286.0,0.13321026]
[1730184017232,0.07747872,71289.0,71286.0,0.13321026]
[1730184017539,0.070188,71291.0,71286.0,0.13321026]
[1730184017540,0.07747872,71288.0,71286.0,0.13421026]
[1730184017731,0.03438254,71287.0,71286.0,0.13421026]
[1730184017935,0.070188,71291.0,71286.0,0.13421026]
[1730184018136,0.0343818,71290.0,71286.0,0.13421026]
[1730184018324,0.070188,71291.0,71286.0,0.13421026]
[1730184018325,0.0343818,71289.0,71286.0,0.13421026]
[1730184018524,0.06201926,71294.0,71286.0,0.13321026]
[1730184018525,0.0343818,71288.0,71286.0,0.13321026]
[1730184018729,0.070189,71290.0,71286.0,0.13421026]
[1730184019131,0.070189,71290.0,71286.0,0.06401926]
[1730184019327,0.02514992,71291.0,71286.0,0.06401926]
[1730184019328,0.07019,71288.0,71286.0,0.06401926]
[1730184019732,0.03438257,71287.0,71286.0,0.06401926]
[1730184020433,0.07019,71288.0,71286.0,0.06401926]
[1730184020633,0.07019,71288.0,71286.0,0.06301926]
[1730184020829,0.07019,71288.0,71286.0,0.06401926]
[1730184021439,0.03438259,71287.0,71286.0,0.06401926]
[1730184022133,0.03438259,71287.0,71286.0,0.13421126]
[1730184022441,0.166227,71292.0,71286.0,0.13421126]
[1730184022738,0.03438152,71291.0,71289.0,0.06201926]
[1730184023038,0.03438152,71290.0,71289.0,0.06201926]
[1730184023224,0.10456952,71290.0,71289.0,0.06201926]
[1730184023532,0.070188,71290.0,71289.0,0.06201926]
[1730184024427,0.070188,71290.0,71289.0,0.06301926]
[1730184025036,0.070188,71290.0,71289.0,0.06201926]
[1730184025235,0.070188,71290.0,71289.0,0.06301926]
[1730184025440,0.070188,71290.0,71289.0,0.06401926]
[1730184027045,0.070188,71290.0,71289.0,0.002]
[1730184027943,0.1045695,71290.0,71289.0,0.002]
[1730184028837,0.10457057,71290.0,71289.0,0.002]
[1730184030043,0.14766876,71290.0,71289.0,0.002]
[1730184030244,0.14766876,71290.0,71289.0,0.00134594]
[1730184030449,0.14767039,71290.0,71289.0,0.00134594]
[1730184031245,0.10457217,71290.0,71289.0,0.00134594]
[1730184032348,0.14767125,71290.0,71289.0,0.00134594]
[1730184033351,0.56847125,71290.0,71289.0,0.00134594]
[1730184034249,0.61883194,71290.0,71289.0,0.00134594]
[1730184035256,0.61883236,71290.0,71289.0,0.00134594]
[1730184035449,0.68085162,71290.0,71289.0,0.00134594]
[1730184035842,0.68085162,71290.0,71273.0,0.0632]
[1730184035843,0.0702,71278.0,71273.0,0.0632]
[1730184036053,0.07748367,71277.0,71275.0,0.42281926]
[1730184037457,0.07848367,71277.0,71275.0,0.42381926]
[1730184037657,0.07748367,71276.0,71275.0,0.42381926]
[1730184038060,0.14768567,71276.0,71275.0,0.42381926]
[1730184038259,0.14768567,71276.0,71275.0,0.42481926]
[1730184038858,0.14868567,71276.0,71275.0,0.42381926]
[1730184040862,0.14868567,71276.0,71275.0,0.3618]
[1730184041062,0.10558674,71276.0,71275.0,0.42381926]
[1730184041269,0.10558674,71276.0,71275.0,0.3618]
[1730184041460,0.1486888,71276.0,71275.0,0.3618]
[1730184044365,0.10558674,71276.0,71275.0,0.3618]
[1730184048778,0.071202,71276.0,71275.0,0.3618]
[1730184049073,0.10558801,71276.0,71275.0,0.3618]
[1730184050265,0.16760727,71276.0,71275.0,0.3618]
[1730184050476,0.21070862,71276.0,71275.0,0.001]
[1730184051376,0.2610755,71276.0,71275.0,0.001]
[1730184051579,0.2610755,71276.0,71256.0,0.3608]
[1730184051580,0.070214,71264.0,71256.0,0.3608]
[1730184051777,0.20072001,71264.0,71256.0,0.3608]
[1730184051977,0.24382136,71264.0,71256.0,0.3608]
[1730184052877,0.24382136,71264.0,71257.0,0.06201926]
[1730184053283,0.24382136,71264.0,71263.0,0.00610414]
[1730184053466,0.24382136,71264.0,71263.0,0.01210414]
[1730184054372,0.20072001,71264.0,71263.0,0.00810414]
[1730184054672,0.20072001,71264.0,71263.0,0.01010414]
[1730184055274,0.26862019,71264.0,71263.0,0.01010414]
[1730184055577,0.26862019,71264.0,71263.0,0.008]
[1730184055876,0.26862019,71264.0,71250.0,0.3608]
[1730184055877,0.73176608,71264.0,71245.0,0.065]
[1730184056074,0.070233,71244.0,71243.0,0.0623]
[1730184056676,0.42281926,71246.0,71237.0,0.06201926]
[1730184056879,0.070239,71238.0,71237.0,0.06201926]
[1730184058473,0.09448941,71245.0,71236.0,0.45528941]
[1730184058674,0.07024,71237.0,71236.0,0.45528941]
[1730184059284,0.07024,71237.0,71236.0,0.3608]
[1730184059983,0.07324,71237.0,71236.0,0.3608]
[1730184060479,0.07324,71237.0,71236.0,0.45528941]
[1730184060779,0.07324,71237.0,71236.0,0.45628941]
[1730184061283,0.07724,71237.0,71236.0,0.45528941]
[1730184061678,0.07724,71237.0,71236.0,0.09448941]
[1730184067880,0.07324,71237.0,71236.0,0.09448941]
[1730184068080,0.07624,71237.0,71236.0,0.09448941]
[1730184068683,0.07324,71237.0,71236.0,0.09448941]
[1730184068988,0.07324,71237.0,71236.0,0.16473041]
[1730184069195,0.070234,71244.0,71243.0,0.070234]
[1730184069491,0.0631,71251.0,71246.0,0.070231]
[1730184069492,0.0207465,71251.0,71246.0,0.070231]
[1730184069681,0.0207465,71251.0,71243.0,0.45528941]
[1730184069682,0.070227,71251.0,71250.0,0.09448941]
[1730184070078,0.070225,71254.0,71250.0,0.45528941]
[1730184070383,0.0667,71260.0,71250.0,0.45528941]
[1730184070384,0.070222,71256.0,71254.0,0.070224]
[1730184070587,0.070222,71256.0,71254.0,0.16471341]
[1730184071796,0.1158648,71259.0,71254.0,0.16571341]
[1730184071797,0.00810576,71255.0,71254.0,0.16571341]
[1730184072776,0.00810576,71255.0,71254.0,0.16671341]
[1730184073381,0.006,71255.0,71254.0,0.58775341]
[1730184073581,0.070213,71266.0,71260.0,0.070217]
[1730184073777,0.070213,71266.0,71264.0,0.09448941]
[1730184073982,0.09020427,71266.0,71264.0,0.09448941]
[1730184075588,0.070215,71263.0,71261.0,0.09448941]
[1730184075791,0.070216,71262.0,71260.0,0.002]
[1730184075993,0.01999127,71266.0,71260.0,0.001]
[1730184076191,0.070217,71261.0,71260.0,0.001]
[1730184076588,0.070219,71259.0,71258.0,0.3608]
[1730184077586,0.070223,71255.0,71251.0,0.09448941]
[1730184078901,0.070224,71254.0,71251.0,0.09448941]
[1730184079706,0.070226,71252.0,71251.0,0.09448941]
[1730184080199,0.03439718,71253.0,71250.0,0.3608]
[1730184080200,0.070227,71251.0,71250.0,0.3608]
[1730184080390,0.070227,71251.0,71250.0,0.45528941]
[1730184082691,0.073227,71251.0,71250.0,0.45628941]
[1730184083290,0.071227,71251.0,71250.0,0.45528941]
[1730184084899,0.10562427,71251.0,71250.0,0.45528941]
[1730184085100,0.12621637,71251.0,71250.0,0.45528941]
[1730184085396,0.12621637,71251.0,71250.0,0.3608]
[1730184085606,0.070233,71244.0,71243.0,0.3608]
[1730184085901,0.10463027,71244.0,71243.0,0.3608]
[1730184086597,0.070233,71244.0,71243.0,0.431034]
[1730184086802,0.070233,71244.0,71243.0,0.45485082]
[1730184086998,0.070233,71244.0,71243.0,0.46085082]
[1730184087299,0.070233,71244.0,71243.0,0.441034]
[1730184087500,0.070233,71244.0,71243.0,0.3708]
[1730184088796,0.070233,71244.0,71243.0,0.3668]
[1730184088996,0.070233,71244.0,71243.0,0.3618]
[1730184089801,0.070233,71244.0,71243.0,0.001]
[1730184090103,0.1046366,71244.0,71243.0,0.001]
[1730184090300,0.1688366,71244.0,71243.0,0.001]
[1730184090508,0.16883752,71244.0,71243.0,0.001]
[1730184091406,0.134433,71244.0,71243.0,0.001]
[1730184091891,0.0642,71244.0,71235.0,0.3608]
[1730184092093,0.070241,71236.0,71235.0,0.3608]
[1730184093203,0.09604,71239.0,71233.0,0.00210583]
[1730184093399,0.070243,71234.0,71233.0,0.00210583]
[1730184093824,0.132643,71234.0,71233.0,0.00210583]
[1730184096206,0.133643,71234.0,71233.0,0.00210583]
[1730184098892,0.15393785,71234.0,71233.0,0.00210583]
[1730184099404,0.070251,71226.0,71225.0,0.3608]
[1730184099607,0.16474041,71226.0,71225.0,0.3608]
[1730184100602,0.16474041,71226.0,71225.0,0.3658]
[1730184101597,0.16474041,71226.0,71225.0,0.005]
[1730184102198,0.16474041,71226.0,71225.0,0.012]
[1730184105507,0.18548069,71226.0,71225.0,0.012]
[1730184105902,0.54628069,71226.0,71225.0,0.012]
[1730184106210,0.18548069,71226.0,71225.0,0.012]
[1730184106412,0.54628069,71226.0,71225.0,0.012]
[1730184107910,0.45179128,71226.0,71225.0,0.012]
[1730184108108,0.18707128,71226.0,71225.0,0.012]
[1730184108712,0.09099128,71226.0,71225.0,0.012]
[1730184109101,0.54628069,71226.0,71225.0,0.012]
[1730184111508,0.18548069,71226.0,71225.0,0.012]
[1730184111703,0.54628069,71226.0,71225.0,0.012]
[1730184112612,0.45179128,71226.0,71225.0,0.012]
[1730184113610,0.54628069,71226.0,71225.0,0.012]
[1730184114819,0.18548069,71226.0,71225.0,0.012]
[1730184115313,0.09099128,71226.0,71225.0,0.012]
[1730184119309,0.18548069,71226.0,71225.0,0.012]
[1730184121922,0.54628069,71226.0,71225.0,0.012]
[1730184122521,0.070251,71226.0,71225.0,0.012]
[1730184123724,0.10466231,71226.0,71225.0,0.012]
[1730184126528,0.10466232,71226.0,71225.0,0.012]
[1730184128724,0.14779551,71226.0,71225.0,0.012]
[1730184129233,0.3608,71233.0,71225.0,0.012]
[1730184129431,0.0634,71242.0,71233.0,0.070244]
[1730184129633,0.0634,71242.0,71236.0,0.09448941]
[1730184129634,0.03440833,71241.0,71236.0,0.09448941]
[1730184129846,0.08379189,71242.0,71236.0,0.09448941]
[1730184129847,0.07024,71237.0,71236.0,0.09448941]
[1730184130024,0.14777478,71237.0,71236.0,0.09448941]
[1730184130425,0.07753298,71237.0,71236.0,0.16473041]
[1730184130731,0.03440833,71237.0,71236.0,0.22613041]
[1730184131127,0.03440425,71237.0,71236.0,0.22613041]
[1730184131728,0.02024593,71246.0,71240.0,0.070237]
[1730184131729,0.070234,71243.0,71240.0,0.070237]
[1730184131932,0.03440359,71242.0,71241.0,0.15928941]
[1730184132136,0.070234,71243.0,71241.0,0.15928941]
[1730184132624,0.3608,71247.0,71241.0,0.15928941]
[1730184132819,0.0344031,71246.0,71241.0,0.15928941]
[1730184133130,0.0344031,71245.0,71241.0,0.15928941]
[1730184133331,0.003,71243.0,71241.0,0.16028941]
[1730184133531,0.070235,71242.0,71241.0,0.23052541]
[1730184133727,0.070235,71242.0,71241.0,0.22952541]
[1730184133932,0.070235,71242.0,71241.0,0.23052541]
[1730184134332,0.070235,71242.0,71241.0,0.23152541]
[1730184135137,0.070235,71242.0,71241.0,0.23052541]
[1730184135330,0.070235,71242.0,71241.0,0.23152541]
[1730184136737,0.070235,71242.0,71241.0,0.23052541]
[1730184136928,0.073235,71242.0,71241.0,0.23152541]
[1730184137328,0.073235,71242.0,71241.0,0.137036]
[1730184139026,0.10763595,71242.0,71241.0,0.137036]
[1730184139335,0.15075521,71242.0,71241.0,0.137036]
[1730184140640,0.070259,71218.0,71215.0,0.3608]
[1730184140839,0.070259,71218.0,71206.0,0.3622]
[1730184140840,0.52554841,71218.0,71213.0,0.0201724]
[1730184141132,0.50859601,71218.0,71212.0,0.28638941]
[1730184141337,0.50859601,71218.0,71216.0,0.09448941]
[1730184141726,0.50859601,71218.0,71217.0,0.01610631]
[1730184141727,0.43833701,71218.0,71217.0,0.01610631]
[1730184142834,0.43833701,71218.0,71217.0,0.03010631]
[1730184143841,0.50859601,71218.0,71217.0,0.03010631]
[1730184146038,0.431059,71218.0,71217.0,0.03010631]
[1730184151745,0.070259,71218.0,71217.0,0.03010631]
[1730184154138,0.19916386,71218.0,71217.0,0.03010631]
[1730184154335,0.26656386,71218.0,71217.0,0.03010631]
[1730184154951,0.26656539,71218.0,71217.0,0.03010631]
[1730184155842,0.33016539,71218.0,71217.0,0.03010631]
[1730184156443,0.3608,71238.0,71217.0,0.94032513]
[1730184156746,0.3608,71238.0,71237.0,0.16472941]